[Event "*** Titled Tuesday 3|2 Blitz"]
[Site "Chess.com"]
[Date "2016.03.01"]
[Round "1"]
[White "chessdude"]
[Black "Grootneus"]
[Result "0-1"]
[WhiteElo "2367"]
[BlackElo "2041"]
[TimeControl "180+2"]
[EndTime "11:10:36 PST"]
[Termination "Grootneus won by resignation"]

1. e4 {[%clk 0:02:58.4]} 1... c5 {[%clk 0:03:00.2]} 2. Nf3 {[%clk 0:02:59.2]}
2... Nc6 {[%clk 0:02:59]} 3. Bb5 {[%clk 0:02:59.3]} 3... Nf6 {[%clk 0:02:59.6]}
4. Bxc6 {[%clk 0:02:59.8]} 4... dxc6 {[%clk 0:03:00.5]} 5. d3 {[%clk 0:03:01.1]}
5... Bg4 {[%clk 0:02:59.9]} 6. h3 {[%clk 0:03:01]} 6... Bxf3 {[%clk 0:02:59.9]}
7. Qxf3 {[%clk 0:03:02.4]} 7... Nd7 {[%clk 0:02:57.1]} 8. Nc3 {[%clk 0:03:02.8]}
8... e5 {[%clk 0:02:58.1]} 9. O-O {[%clk 0:03:01.8]} 9... Be7 {[%clk 0:02:59]}
10. Qg4 {[%clk 0:03:01.8]} 10... O-O {[%clk 0:02:52.6]} 11. Ne2 {[%clk 0:02:58]}
11... Nf6 {[%clk 0:02:45]} 12. Qf3 {[%clk 0:02:54.7]} 12... Nd7 {[%clk
0:02:32.1]} 13. b3 {[%clk 0:02:51.5]} 13... a5 {[%clk 0:02:06.8]} 14. a4 {[%clk
0:02:51.1]} 14... c4 {[%clk 0:02:02.5]} 15. dxc4 {[%clk 0:02:41.6]} 15... Nc5
{[%clk 0:02:02.9]} 16. Bb2 {[%clk 0:02:33]} 16... f6 {[%clk 0:02:02.1]} 17. Rad1
{[%clk 0:02:33.5]} 17... Qc7 {[%clk 0:02:02.1]} 18. Ng3 {[%clk 0:02:34.5]} 18...
Rfd8 {[%clk 0:02:01]} 19. Nf5 {[%clk 0:02:33.4]} 19... Bf8 {[%clk 0:02:00.7]}
20. Qg4 {[%clk 0:02:31.5]} 20... b5 {[%clk 0:01:48.8]} 21. cxb5 {[%clk
0:02:29.2]} 21... cxb5 {[%clk 0:01:50.7]} 22. axb5 {[%clk 0:02:24.6]} 22... g6
{[%clk 0:01:47.3]} 23. Ne3 {[%clk 0:02:20.5]} 23... Qb7 {[%clk 0:01:45.4]} 24.
Rxd8 {[%clk 0:02:14.6]} 24... Rxd8 {[%clk 0:01:45.9]} 25. Rd1 {[%clk 0:02:14.9]}
25... Rxd1+ {[%clk 0:01:38.1]} 26. Qxd1 {[%clk 0:02:15.1]} 26... Nxe4 {[%clk
0:01:24.6]} 27. Qd3 {[%clk 0:01:59.8]} 27... Bc5 {[%clk 0:01:15.6]} 28. c4
{[%clk 0:01:52.3]} 28... Kg7 {[%clk 0:01:09.5]} 29. Bc1 {[%clk 0:01:45.2]} 29...
Bd4 {[%clk 0:01:03]} 30. Bd2 {[%clk 0:01:41.9]} 30... Nc5 {[%clk 0:01:02.5]} 31.
Qc2 {[%clk 0:01:42.9]} 31... Qa7 {[%clk 0:00:53.3]} 32. Qa2 {[%clk 0:01:37.7]}
32... Ne4 {[%clk 0:00:48.8]} 33. Qxa5 {[%clk 0:01:14.4]} 33... Qb7 {[%clk
0:00:27.8]} 34. b6 {[%clk 0:00:59.8]} 34... Bxb6 {[%clk 0:00:24]} 35. Qb4 {[%clk
0:00:56.3]} 35... Qa7 {[%clk 0:00:20.8]} 36. Kf1 {[%clk 0:00:32.8]} 36... Bc5
{[%clk 0:00:21.5]} 37. Qa5 {[%clk 0:00:32.3]} 37... Qd7 {[%clk 0:00:12.7]} 38.
Ke2 {[%clk 0:00:30.4]} 38... Qd4 {[%clk 0:00:13.2]} 39. Qa2 {[%clk 0:00:23.5]}
39... Bb6 {[%clk 0:00:09.2]} 40. Qc2 {[%clk 0:00:24.1]} 40... Nc5 {[%clk
0:00:09.5]} 41. b4 {[%clk 0:00:23.2]} 41... Ne6 {[%clk 0:00:10]} 42. c5 {[%clk
0:00:23]} 42... Nf4+ {[%clk 0:00:11.4]} 43. Kf1 {[%clk 0:00:21.6]} 43... Bc7
{[%clk 0:00:12.4]} 44. Bc3 {[%clk 0:00:20.9]} 44... Qc4+ {[%clk 0:00:13]} 45.
Kg1 {[%clk 0:00:20.2]} 45... Ne2+ {[%clk 0:00:14]} 46. Kh2 {[%clk 0:00:21.3]}
46... Nxc3 {[%clk 0:00:15.4]} 47. g3 {[%clk 0:00:20.5]} 47... Qxb4 {[%clk
0:00:15.4]} 48. c6 {[%clk 0:00:20.7]} 48... Qc5 {[%clk 0:00:14.7]} 49. Nd1
{[%clk 0:00:21.1]} 49... Ba5 {[%clk 0:00:14.4]} 50. Nxc3 {[%clk 0:00:21.2]}
50... Qxc6 {[%clk 0:00:15.6]} 51. Qa4 {[%clk 0:00:20.3]} 51... Qxc3 {[%clk
0:00:16.5]} 52. Qd7+ {[%clk 0:00:21.3]} 52... Kh6 {[%clk 0:00:18]} 53. Qe8
{[%clk 0:00:22.3]} 53... Bb4 {[%clk 0:00:17]} 54. Qd7 {[%clk 0:00:22.2]} 54...
Qf3 {[%clk 0:00:16.4]} 55. Kg1 {[%clk 0:00:21.7]} 55... Be1 {[%clk 0:00:16.3]}
56. Qa7 {[%clk 0:00:18.4]} 56... Qxf2+ {[%clk 0:00:16.6]} 57. Qxf2 {[%clk
0:00:19.4]} 57... Bxf2+ {[%clk 0:00:18.5]} 58. Kxf2 {[%clk 0:00:21.1]} 58... Kg5
{[%clk 0:00:20.3]} 59. Kf3 {[%clk 0:00:22.6]} 59... Kf5 {[%clk 0:00:21.7]} 60.
Ke3 {[%clk 0:00:23.9]} 60... Ke6 {[%clk 0:00:22.5]} 61. Kd3 {[%clk 0:00:23.9]}
61... Kd5 {[%clk 0:00:23.1]} 62. Ke3 {[%clk 0:00:25.4]} 62... f5 {[%clk
0:00:24.7]} 63. Kd3 {[%clk 0:00:26.8]} 63... g5 {[%clk 0:00:26.2]} 64. Ke3
{[%clk 0:00:28.2]} 64... e4 {[%clk 0:00:27.2]} 65. h4 {[%clk 0:00:27.1]} 65...
gxh4 {[%clk 0:00:27.5]} 66. Kf4 {[%clk 0:00:27.7]} 66... hxg3 {[%clk 0:00:27.3]}
0-1

[Event "*** Titled Tuesday 3|2 Blitz"]
[Site "Chess.com"]
[Date "2016.03.01"]
[Round "1"]
[White "arnacman"]
[Black "Izoria123"]
[Result "0-1"]
[WhiteElo "2307"]
[BlackElo "2541"]
[TimeControl "180+2"]
[EndTime "11:10:39 PST"]
[Termination "Izoria123 won by checkmate"]

1. e4 {[%clk 0:02:56.5]} 1... g6 {[%clk 0:02:58.9]} 2. d4 {[%clk 0:02:56.1]}
2... Bg7 {[%clk 0:02:59.4]} 3. Nc3 {[%clk 0:02:57.1]} 3... d6 {[%clk 0:02:59.8]}
4. f4 {[%clk 0:02:57.7]} 4... a6 {[%clk 0:02:59.2]} 5. Be3 {[%clk 0:02:57]} 5...
b5 {[%clk 0:02:59.2]} 6. Bd3 {[%clk 0:02:56.8]} 6... Bb7 {[%clk 0:02:59.8]} 7.
Nf3 {[%clk 0:02:56.3]} 7... Nd7 {[%clk 0:02:59.2]} 8. a4 {[%clk 0:02:56.3]} 8...
b4 {[%clk 0:02:59.8]} 9. Ne2 {[%clk 0:02:57.2]} 9... Ngf6 {[%clk 0:02:56]} 10.
Ng3 {[%clk 0:02:47.9]} 10... O-O {[%clk 0:02:55.8]} 11. O-O {[%clk 0:02:41.3]}
11... c5 {[%clk 0:02:55.2]} 12. c3 {[%clk 0:02:40.4]} 12... bxc3 {[%clk
0:02:52.2]} 13. bxc3 {[%clk 0:02:40.9]} 13... Qc7 {[%clk 0:02:47]} 14. e5 {[%clk
0:02:40.9]} 14... Nd5 {[%clk 0:02:44.7]} 15. Bd2 {[%clk 0:02:39.7]} 15... cxd4
{[%clk 0:02:37.6]} 16. cxd4 {[%clk 0:02:40]} 16... Rfc8 {[%clk 0:02:35.8]} 17.
a5 {[%clk 0:02:32.4]} 17... Nf8 {[%clk 0:02:16.6]} 18. Ne4 {[%clk 0:02:20]}
18... Qd7 {[%clk 0:02:06.3]} 19. Qe2 {[%clk 0:02:11.3]} 19... Ne6 {[%clk
0:02:06.2]} 20. g3 {[%clk 0:01:48.1]} 20... dxe5 {[%clk 0:02:05.6]} 21. dxe5
{[%clk 0:01:44.6]} 21... Bc6 {[%clk 0:01:56.9]} 22. Rfd1 {[%clk 0:01:35.4]}
22... Qa7+ {[%clk 0:01:39.9]} 23. Qf2 {[%clk 0:01:29.8]} 23... Bb5 {[%clk
0:01:29.1]} 24. Qxa7 {[%clk 0:01:23.9]} 24... Rxa7 {[%clk 0:01:31]} 25. Bxb5
{[%clk 0:01:17.4]} 25... axb5 {[%clk 0:01:32.9]} 26. Rab1 {[%clk 0:01:16.9]}
26... b4 {[%clk 0:01:06.4]} 27. Bxb4 {[%clk 0:01:04.1]} 27... Nxb4 {[%clk
0:01:08.3]} 28. Rxb4 {[%clk 0:01:05.3]} 28... Rxa5 {[%clk 0:01:09.9]} 29. Rb7
{[%clk 0:00:56.8]} 29... Bf8 {[%clk 0:01:10.1]} 30. Rd2 {[%clk 0:00:49.3]} 30...
h6 {[%clk 0:01:06]} 31. Kg2 {[%clk 0:00:48.2]} 31... Ra4 {[%clk 0:01:05.6]} 32.
Re2 {[%clk 0:00:42.3]} 32... Rcc4 {[%clk 0:01:04.2]} 33. Nf2 {[%clk 0:00:40.7]}
33... Ra8 {[%clk 0:01:04.3]} 34. Reb2 {[%clk 0:00:39.3]} 34... g5 {[%clk
0:00:59.8]} 35. f5 {[%clk 0:00:34.5]} 35... Nd4 {[%clk 0:00:51.4]} 36. Nd2
{[%clk 0:00:20]} 36... Rc5 {[%clk 0:00:38.3]} 37. Nd3 {[%clk 0:00:20.5]} 37...
Rc3 {[%clk 0:00:39.4]} 38. Nb4 {[%clk 0:00:16.3]} 38... Nxf5 {[%clk 0:00:38.9]}
39. Ne4 {[%clk 0:00:16]} 39... Rc4 {[%clk 0:00:37.6]} 40. Nd2 {[%clk 0:00:16.5]}
40... Rd4 {[%clk 0:00:34.7]} 41. Nc6 {[%clk 0:00:17.4]} 41... Rd5 {[%clk
0:00:31.5]} 42. g4 {[%clk 0:00:18.6]} 42... Nh4+ {[%clk 0:00:28.6]} 43. Kg3
{[%clk 0:00:19.4]} 43... Ra3+ {[%clk 0:00:27.4]} 44. Kf2 {[%clk 0:00:20.3]}
44... Rc3 {[%clk 0:00:20.6]} 45. Ne4 {[%clk 0:00:20.6]} 45... Rxc6 {[%clk
0:00:20.7]} 46. e6 {[%clk 0:00:20.6]} 46... Rxe6 {[%clk 0:00:21.5]} 47. Ng3
{[%clk 0:00:21.8]} 47... Rf6+ {[%clk 0:00:22.1]} 48. Ke3 {[%clk 0:00:22.6]}
48... Re5+ {[%clk 0:00:22]} 49. Kd4 {[%clk 0:00:22.5]} 49... Nf3+ {[%clk
0:00:23.2]} 50. Kc4 {[%clk 0:00:23.7]} 50... Rc6+ {[%clk 0:00:22.7]} 51. Kd3
{[%clk 0:00:24.8]} 51... Rd6+ {[%clk 0:00:23]} 52. Kc4 {[%clk 0:00:25.5]} 52...
Nd2+ {[%clk 0:00:22.1]} 53. Kc3 {[%clk 0:00:26.2]} 53... Ne4+ {[%clk 0:00:22.7]}
54. Nxe4 {[%clk 0:00:27.3]} 54... Rxe4 {[%clk 0:00:24.3]} 55. Rb8 {[%clk
0:00:28.8]} 55... Rxg4 {[%clk 0:00:20.3]} 56. Re2 {[%clk 0:00:29.8]} 56... Kg7
{[%clk 0:00:20.9]} 57. Ra2 {[%clk 0:00:28.5]} 57... Rc6+ {[%clk 0:00:19.2]} 58.
Kd3 {[%clk 0:00:29.3]} 58... Rd6+ {[%clk 0:00:19.5]} 59. Ke3 {[%clk 0:00:30.2]}
59... e6 {[%clk 0:00:20.6]} 60. Raa8 {[%clk 0:00:30.5]} 60... Be7 {[%clk
0:00:21.6]} 61. Rh8 {[%clk 0:00:29.1]} 61... Kf6 {[%clk 0:00:20.5]} 62. Rxh6+
{[%clk 0:00:28.8]} 62... Ke5 {[%clk 0:00:21.7]} 63. Rh7 {[%clk 0:00:28.1]} 63...
Rf4 {[%clk 0:00:21.1]} 64. Ra5+ {[%clk 0:00:27.9]} 64... Rd5 {[%clk 0:00:22.2]}
65. Ra7 {[%clk 0:00:28.2]} 65... Bc5+ {[%clk 0:00:23.2]} 66. Ke2 {[%clk
0:00:28.6]} 66... Bxa7 {[%clk 0:00:24.6]} 67. h4 {[%clk 0:00:29.9]} 67... Rxh4
{[%clk 0:00:24.2]} 68. Rg7 {[%clk 0:00:30.4]} 68... Rh2+ {[%clk 0:00:25]} 69.
Kf3 {[%clk 0:00:30.8]} 69... Kf6 {[%clk 0:00:25.8]} 70. Rg8 {[%clk 0:00:28.2]}
70... Rd3+ {[%clk 0:00:26.2]} 71. Kg4 {[%clk 0:00:26.1]} 71... Rh4# {[%clk
0:00:26.5]} 0-1

[Event "*** Titled Tuesday 3|2 Blitz"]
[Site "Chess.com"]
[Date "2016.03.01"]
[Round "1"]
[White "Blitzstream"]
[Black "Cecile_Haussernot"]
[Result "1/2-1/2"]
[WhiteElo "2451"]
[BlackElo "2178"]
[TimeControl "180+2"]
[EndTime "11:10:55 PST"]
[Termination "Game drawn by agreement"]

1. d4 {[%clk 0:02:57.1]} 1... Nf6 {[%clk 0:03:00.3]} 2. Bg5 {[%clk 0:02:56.3]}
2... d5 {[%clk 0:02:59.8]} 3. e3 {[%clk 0:02:56.5]} 3... c5 {[%clk 0:02:51.7]}
4. c3 {[%clk 0:02:56.7]} 4... Nc6 {[%clk 0:02:49.5]} 5. Nf3 {[%clk 0:02:55.7]}
5... Bf5 {[%clk 0:02:46]} 6. Qb3 {[%clk 0:02:53.6]} 6... Qb6 {[%clk 0:02:38.7]}
7. Nbd2 {[%clk 0:02:45]} 7... e6 {[%clk 0:02:35.7]} 8. Be2 {[%clk 0:02:38.3]}
8... c4 {[%clk 0:02:35.9]} 9. Qxb6 {[%clk 0:02:38.4]} 9... axb6 {[%clk
0:02:36.7]} 10. O-O {[%clk 0:02:38.3]} 10... Ne4 {[%clk 0:02:32.5]} 11. Nxe4
{[%clk 0:02:38.3]} 11... Bxe4 {[%clk 0:02:33.4]} 12. Nd2 {[%clk 0:02:38.1]}
12... Bc2 {[%clk 0:02:14.9]} 13. Rfc1 {[%clk 0:02:36.8]} 13... Bg6 {[%clk
0:02:14.1]} 14. e4 {[%clk 0:02:34.3]} 14... b5 {[%clk 0:02:02.3]} 15. exd5
{[%clk 0:02:32.4]} 15... exd5 {[%clk 0:02:03.2]} 16. Bf3 {[%clk 0:02:34]} 16...
f6 {[%clk 0:01:55.8]} 17. Bf4 {[%clk 0:02:31.6]} 17... Ne7 {[%clk 0:01:49.7]}
18. Nf1 {[%clk 0:02:23.7]} 18... Kd7 {[%clk 0:01:50.2]} 19. Ne3 {[%clk
0:02:24.3]} 19... Kc6 {[%clk 0:01:50.4]} 20. b3 {[%clk 0:02:22.4]} 20... Be4
{[%clk 0:01:49]} 21. Bxe4 {[%clk 0:02:17.3]} 21... dxe4 {[%clk 0:01:50]} 22.
bxc4 {[%clk 0:02:18.3]} 22... g5 {[%clk 0:01:48.3]} 23. cxb5+ {[%clk 0:02:01.7]}
23... Kxb5 {[%clk 0:01:47.9]} 24. c4+ {[%clk 0:01:59.6]} 24... Kc6 {[%clk
0:01:45.4]} 25. Bg3 {[%clk 0:01:55.9]} 25... Bg7 {[%clk 0:01:33.1]} 26. Rab1
{[%clk 0:01:46.8]} 26... Ra7 {[%clk 0:01:20]} 27. d5+ {[%clk 0:01:14]} 27... Kd7
{[%clk 0:01:17.5]} 28. c5 {[%clk 0:01:13.2]} 28... Rc8 {[%clk 0:01:11.4]} 29. d6
{[%clk 0:01:11.6]} 29... Nc6 {[%clk 0:00:41.3]} 30. Nd5 {[%clk 0:01:12.7]} 30...
Re8 {[%clk 0:00:35.7]} 31. Rb2 {[%clk 0:00:57.5]} 31... f5 {[%clk 0:00:35.2]}
32. Rcb1 {[%clk 0:00:45.2]} 32... Bxb2 {[%clk 0:00:34.9]} 33. Rxb2 {[%clk
0:00:44.8]} 33... f4 {[%clk 0:00:36.1]} 34. Nf6+ {[%clk 0:00:34.6]} 34... Kd8
{[%clk 0:00:37.6]} 35. Nxe8 {[%clk 0:00:31.2]} 35... Kxe8 {[%clk 0:00:39.3]} 36.
Re2 {[%clk 0:00:29.1]} 36... Ra4 {[%clk 0:00:37.5]} 37. f3 {[%clk 0:00:30.3]}
37... fxg3 {[%clk 0:00:37.4]} 38. fxe4 {[%clk 0:00:29.3]} 38... Nd4 {[%clk
0:00:36.6]} 39. Rb2 {[%clk 0:00:28.3]} 39... gxh2+ {[%clk 0:00:34]} 40. Kxh2
{[%clk 0:00:30.2]} 40... Kd7 {[%clk 0:00:28.1]} 41. Rxb7+ {[%clk 0:00:30.1]}
41... Kc6 {[%clk 0:00:29.7]} 42. Rc7+ {[%clk 0:00:30.9]} 42... Kb5 {[%clk
0:00:29.9]} 43. d7 {[%clk 0:00:32.3]} 43... Ne6 {[%clk 0:00:29.9]} 44. Rc8
{[%clk 0:00:32.5]} 44... Rd4 {[%clk 0:00:31.5]} 45. c6 {[%clk 0:00:33.1]} 45...
Kb6 {[%clk 0:00:32.2]} 46. Re8 {[%clk 0:00:26.5]} 46... Kxc6 {[%clk 0:00:26]}
47. Rxe6+ {[%clk 0:00:27.3]} 47... Kxd7 {[%clk 0:00:27.7]} 48. Rh6 {[%clk
0:00:27.5]} 48... Rxe4 {[%clk 0:00:28]} 49. Rxh7+ {[%clk 0:00:28.8]} 49... Kc6
{[%clk 0:00:29.4]} 50. Ra7 {[%clk 0:00:29.3]} 50... Kd5 {[%clk 0:00:30]} 51.
Ra5+ {[%clk 0:00:30]} 51... Ke6 {[%clk 0:00:29.3]} 52. Kg3 {[%clk 0:00:28.2]}
52... Re3+ {[%clk 0:00:26.6]} 53. Kf2 {[%clk 0:00:29.1]} 53... Rc3 {[%clk
0:00:24.9]} 54. g3 {[%clk 0:00:23.4]} 54... g4 {[%clk 0:00:25.2]} 55. Ra8 {[%clk
0:00:20.4]} 55... Ke5 {[%clk 0:00:24.9]} 56. Ra4 {[%clk 0:00:21.3]} 56... Rf3+
{[%clk 0:00:25.3]} 57. Kg2 {[%clk 0:00:21.9]} 57... Rc3 {[%clk 0:00:26.9]} 58.
a3 {[%clk 0:00:21.2]} 58... Rc2+ {[%clk 0:00:27.4]} 59. Kf1 {[%clk 0:00:22.4]}
59... Ra2 {[%clk 0:00:25.8]} 60. Kg1 {[%clk 0:00:22.9]} 60... Kf5 {[%clk
0:00:26.7]} 61. Kf1 {[%clk 0:00:24]} 61... Ke5 {[%clk 0:00:28.3]} 62. Ke1 {[%clk
0:00:25]} 62... Kf5 {[%clk 0:00:29.1]} 63. Kf1 {[%clk 0:00:23.5]} 63... Ke5
{[%clk 0:00:29.2]} 64. Kg1 {[%clk 0:00:20.7]} 64... Kf5 {[%clk 0:00:29.3]} 65.
Rf4+ {[%clk 0:00:21.5]} 65... Kg5 {[%clk 0:00:30.2]} 66. a4 {[%clk 0:00:22.8]}
66... Ra3 {[%clk 0:00:26.8]} 67. Kg2 {[%clk 0:00:23.3]} 67... Ra2+ {[%clk
0:00:28.3]} 68. Kf1 {[%clk 0:00:24.4]} 68... Ra3 {[%clk 0:00:29.1]} 69. Kf2
{[%clk 0:00:25.6]} 69... Ra2+ {[%clk 0:00:30.1]} 70. Kf1 {[%clk 0:00:25.8]}
70... Ra3 {[%clk 0:00:30.9]} 71. Kg2 {[%clk 0:00:26.8]} 71... Ra2+ {[%clk
0:00:31.9]} 72. Kg1 {[%clk 0:00:27.1]} 72... Ra1+ {[%clk 0:00:32.3]} 1/2-1/2

[Event "*** Titled Tuesday 3|2 Blitz"]
[Site "Chess.com"]
[Date "2016.03.01"]
[Round "1"]
[White "pKiLz5Rn9b"]
[Black "dcremisi"]
[Result "1/2-1/2"]
[WhiteElo "2518"]
[BlackElo "2268"]
[TimeControl "180+2"]
[EndTime "11:11:20 PST"]
[Termination "Game drawn by repetition"]

1. e4 {[%clk 0:03:01]} 1... e6 {[%clk 0:02:59.7]} 2. d4 {[%clk 0:03:01.9]} 2...
d5 {[%clk 0:02:59.1]} 3. Nd2 {[%clk 0:03:03.4]} 3... dxe4 {[%clk 0:03:00]} 4.
Nxe4 {[%clk 0:03:05.3]} 4... Nd7 {[%clk 0:03:01.5]} 5. Nf3 {[%clk 0:03:06]} 5...
Be7 {[%clk 0:03:02.1]} 6. Bd3 {[%clk 0:03:06.3]} 6... Ngf6 {[%clk 0:03:03]} 7.
O-O {[%clk 0:03:05.9]} 7... b6 {[%clk 0:03:02]} 8. Qe2 {[%clk 0:03:06]} 8... Bb7
{[%clk 0:03:03.2]} 9. c4 {[%clk 0:03:04.7]} 9... O-O {[%clk 0:03:03.8]} 10. Rd1
{[%clk 0:03:01.4]} 10... Re8 {[%clk 0:02:58.1]} 11. b3 {[%clk 0:03:02.5]} 11...
Qc8 {[%clk 0:02:57.6]} 12. Bb2 {[%clk 0:03:03.3]} 12... Nxe4 {[%clk 0:02:58.2]}
13. Bxe4 {[%clk 0:03:04.3]} 13... Bxe4 {[%clk 0:02:59.8]} 14. Qxe4 {[%clk
0:03:05.9]} 14... Bf6 {[%clk 0:03:01.5]} 15. Rac1 {[%clk 0:03:06]} 15... c5
{[%clk 0:03:02.4]} 16. Qe2 {[%clk 0:03:02]} 16... cxd4 {[%clk 0:02:44.5]} 17.
Nxd4 {[%clk 0:03:02.4]} 17... Rd8 {[%clk 0:02:43.6]} 18. Nb5 {[%clk 0:02:55.4]}
18... Bxb2 {[%clk 0:02:43]} 19. Qxb2 {[%clk 0:02:57.3]} 19... Nf6 {[%clk
0:02:43.3]} 20. Qe5 {[%clk 0:02:55.8]} 20... Qb7 {[%clk 0:02:36.8]} 21. Rd6
{[%clk 0:02:51.2]} 21... Rxd6 {[%clk 0:02:21.5]} 22. Qxd6 {[%clk 0:02:49.7]}
22... a6 {[%clk 0:02:21.5]} 23. Nc3 {[%clk 0:02:50.2]} 23... Rc8 {[%clk
0:02:05.6]} 24. Rd1 {[%clk 0:02:50.8]} 24... b5 {[%clk 0:02:00.4]} 25. c5 {[%clk
0:02:51]} 25... h6 {[%clk 0:01:56.6]} 26. b4 {[%clk 0:02:51.1]} 26... Rc7 {[%clk
0:01:53.1]} 27. Qd8+ {[%clk 0:02:41.7]} 27... Kh7 {[%clk 0:01:52.6]} 28. Qd3+
{[%clk 0:02:43.3]} 28... Kg8 {[%clk 0:01:51.4]} 29. Qe2 {[%clk 0:02:42.6]} 29...
Rd7 {[%clk 0:01:51.5]} 30. a3 {[%clk 0:02:43.8]} 30... Nd5 {[%clk 0:01:47.9]}
31. Nxd5 {[%clk 0:02:30.7]} 31... Rxd5 {[%clk 0:01:48.4]} 32. Rxd5 {[%clk
0:02:29.7]} 32... Qxd5 {[%clk 0:01:49.3]} 33. Qc2 {[%clk 0:02:28.7]} 33... Qc6
{[%clk 0:01:48.3]} 34. Qd3 {[%clk 0:02:29.7]} 34... g6 {[%clk 0:01:38.8]} 35. f3
{[%clk 0:02:26.4]} 35... e5 {[%clk 0:01:28.7]} 36. Kf2 {[%clk 0:02:25.1]} 36...
Kg7 {[%clk 0:01:27.8]} 37. Ke3 {[%clk 0:02:19.9]} 37... Kf6 {[%clk 0:01:28.7]}
38. Qd8+ {[%clk 0:02:17.7]} 38... Ke6 {[%clk 0:01:26.4]} 39. g4 {[%clk 0:02:13]}
39... Qd7 {[%clk 0:01:05.1]} 40. Qb6+ {[%clk 0:01:47.7]} 40... Ke7 {[%clk
0:01:01.1]} 41. c6 {[%clk 0:01:46.8]} 41... Qd1 {[%clk 0:00:49.2]} 42. Qc7+
{[%clk 0:01:47.2]} 42... Kf8 {[%clk 0:00:46.7]} 43. Qb8+ {[%clk 0:01:48.1]}
43... Kg7 {[%clk 0:00:46.7]} 44. Qxe5+ {[%clk 0:01:48.7]} 44... Kh7 {[%clk
0:00:48.4]} 45. c7 {[%clk 0:01:40.5]} 45... Qc1+ {[%clk 0:00:45.7]} 46. Kd4
{[%clk 0:01:39.1]} 46... Qc4+ {[%clk 0:00:44.1]} 47. Ke3 {[%clk 0:01:38.2]}
47... Qc1+ {[%clk 0:00:45.8]} 48. Kf2 {[%clk 0:01:37.2]} 48... Qc2+ {[%clk
0:00:35.9]} 49. Kg3 {[%clk 0:01:36.9]} 49... Qc1 {[%clk 0:00:37.3]} 50. Kf2
{[%clk 0:00:48.8]} 50... Qd2+ {[%clk 0:00:29.8]} 51. Qe2 {[%clk 0:00:42.6]}
51... Qc3 {[%clk 0:00:24.5]} 52. Qe7 {[%clk 0:00:40.8]} 52... Kg7 {[%clk
0:00:13]} 53. Qd6 {[%clk 0:00:42.1]} 53... Qc2+ {[%clk 0:00:12.8]} 54. Ke3
{[%clk 0:00:39.5]} 54... Qc1+ {[%clk 0:00:13.6]} 55. Kf2 {[%clk 0:00:23.2]}
55... Qc2+ {[%clk 0:00:12]} 56. Kg3 {[%clk 0:00:24.6]} 56... Qc1 {[%clk
0:00:13]} 57. Qc5 {[%clk 0:00:22.2]} 57... Qe1+ {[%clk 0:00:13.3]} 58. Kg2
{[%clk 0:00:19.5]} 58... Qe2+ {[%clk 0:00:13.4]} 59. Qf2 {[%clk 0:00:20.8]}
59... Qc4 {[%clk 0:00:14.3]} 60. Qb2+ {[%clk 0:00:21.9]} 60... Kh7 {[%clk
0:00:14.8]} 61. Qe5 {[%clk 0:00:23.1]} 61... Qc2+ {[%clk 0:00:14.7]} 62. Kg3
{[%clk 0:00:24.7]} 62... Qc1 {[%clk 0:00:16.4]} 63. Qd6 {[%clk 0:00:17.3]} 63...
Qg1+ {[%clk 0:00:15.1]} 64. Kh3 {[%clk 0:00:12.9]} 64... Qf1+ {[%clk 0:00:15.6]}
65. Kg3 {[%clk 0:00:10.1]} 65... Qg1+ {[%clk 0:00:16.7]} 66. Kh3 {[%clk
0:00:07.5]} 66... Qf1+ {[%clk 0:00:17.8]} 67. Kh4 {[%clk 0:00:06.9]} 67... g5+
{[%clk 0:00:14.9]} 68. Kg3 {[%clk 0:00:07.1]} 68... Qg1+ {[%clk 0:00:16.2]} 69.
Kh3 {[%clk 0:00:08.7]} 69... Qf1+ {[%clk 0:00:17.6]} 70. Kg3 {[%clk 0:00:08.7]}
70... Qe1+ {[%clk 0:00:18]} 71. Kg2 {[%clk 0:00:08]} 71... Qe2+ {[%clk
0:00:19.4]} 72. Kg1 {[%clk 0:00:09.5]} 72... Qe1+ {[%clk 0:00:20.9]} 73. Kg2
{[%clk 0:00:11]} 73... Qe2+ {[%clk 0:00:22.4]} 74. Kg3 {[%clk 0:00:11.6]} 74...
Qe1+ {[%clk 0:00:23.7]} 75. Kh3 {[%clk 0:00:12.2]} 75... Qf1+ {[%clk 0:00:23.6]}
76. Kg3 {[%clk 0:00:13.8]} 76... Qg1+ {[%clk 0:00:24.2]} 77. Kh3 {[%clk
0:00:14.9]} 77... Qf1+ {[%clk 0:00:25.6]} 78. Kg3 {[%clk 0:00:16]} 78... Qg1+
{[%clk 0:00:26.7]} 1/2-1/2